fUSD/lending_fUSD_20260405
["ID","MTS","AMOUNT","RATE_DAILY","PERIOD"]
[419848313,1775417462381,-150.60277619,0.00016,2]
[419848314,1775417462392,-150.0,0.00016,2]
[419848315,1775417462402,-150.0,0.00016,2]
[419848316,1775417462412,-151.01430456,0.00016,2]
[419848317,1775417462422,-287.38140471,0.00016,2]
[419848318,1775417462432,-150.0,0.00016,2]
[419848319,1775417462441,-150.0,0.00016,2]
[419848320,1775417462451,-267.10584669,0.00016,2]
[419848321,1775417462460,-142519.37140167,0.00016,2]
[419848322,1775417463923,-489867.93138846,0.00016,2]
[419848323,1775417464014,-1052.848,0.00015653,2]
[419848324,1775417464023,-86541.09886305,0.00016,2]
[419848325,1775417464053,-372.34049029,0.00016,2]
[419848326,1775417464083,-1407.38003316,0.00016,2]
[419848327,1775417464094,-586.38738337,0.00016,2]
[419848328,1775417464536,-375.04808197,0.00016,2]
[419848329,1775417465528,-202.29145231,0.00012793,2]
[419848330,1775417465544,-219.7210401,0.00012895,2]
[419848344,1775418426141,-1500.0,0.0001231,2]
[419848345,1775418426165,-195.0,0.0001232,2]
[419848346,1775418426189,-406.09,0.00012331,2]
[419848347,1775418426212,-500.0,0.00012559,2]
[419848348,1775418426234,-175.15882966,0.00012594,2]
[419848349,1775418426256,-300.0,0.00012694,2]
[419848350,1775418426279,-38.0694099,0.00012695,2]
[419848430,1775418634073,163.25,6.051e-05,2]
[419848431,1775418637765,-266.45520055,0.00012207,2]
[419848432,1775418637816,-3988.49479945,0.00012207,2]
[419848433,1775418637827,-200.0,0.00012373,2]
[419848434,1775418637837,-182.78240974,0.00012585,2]
[419848435,1775418637848,-300.0,0.00012594,2]
[419848436,1775418637859,-1200.0,0.00012594,2]
[419848437,1775418637869,-500.0,0.00012594,2]
[419848438,1775418637879,-322.71120098,0.00012594,2]
[419848439,1775418637890,-500.0,0.00012594,2]
[419848440,1775418637900,-500.0,0.00012594,2]
[419848441,1775418637909,-644.41224829,0.00012594,2]
[419848442,1775418637920,-1500000.0,0.00012595,2]
[419848443,1775418637930,-150.0,0.00012694,2]
[419848444,1775418637940,-1361.70318355,0.00012695,2]
[419848445,1775418637950,-30172.71823866,0.00012695,2]
[419848446,1775418637961,-37991.50674491,0.00012695,2]
[419848447,1775418637971,-2500.0,0.00012695,2]
[419848448,1775418637982,-166.66,0.00012758,2]
[419848449,1775418637992,-500.0,0.00012773,2]
[419848450,1775418638003,-9999.99,0.00012787,2]
[419848451,1775418638013,-29999.99,0.00012787,2]
[419848452,1775418638024,-22044.56,0.00012787,2]
[419848453,1775418638034,-200.0,0.00012787,2]
[419848454,1775418638044,-151.0,0.00012787,2]
[419848455,1775418638055,-151.0,0.00012787,2]
[419848456,1775418638065,-151.0,0.00012787,2]
[419848457,1775418638076,-151.0,0.00012787,2]
[419848458,1775418638085,-151.0,0.00012787,2]
[419848459,1775418638096,-151.0,0.00012787,2]
[419848460,1775418638106,-151.0,0.00012787,2]
[419848461,1775418638116,-151.0,0.00012787,2]
[419848462,1775418638127,-151.0,0.00012787,2]
[419848463,1775418638137,-151.0,0.00012787,2]
[419848464,1775418638147,-151.0,0.00012787,2]
[419848465,1775418638160,-151.0,0.00012787,2]
[419848466,1775418638171,-151.0,0.00012792,2]
[419848467,1775418638181,-151.0,0.00012792,2]
[419848469,1775418638191,-151.0,0.00012792,2]
[419848471,1775418638201,-79043.2506,0.00012795,2]
[419848473,1775418638211,-163.0,0.00012895,3]
[419848475,1775418638221,-1000.0,0.00012895,2]
[419848477,1775418638231,-150.0,0.000129,2]
[419848479,1775418638242,-250.0,0.00013,2]
[419848481,1775418638253,-406.09,0.00013016,2]
[419848482,1775418638263,-30172.71823857,0.00013051,2]
[419848483,1775418638275,-37991.50674491,0.00013051,2]
[419848484,1775418638285,-507.0,0.00013111,2]
[419848485,1775418638295,-166.66,0.00013179,2]
[419848486,1775418638305,-500.0,0.00013179,2]
[419848487,1775418638315,-162.0,0.0001318,2]
[419848488,1775418638324,-665.0,0.000132,2]
[419848489,1775418638334,-413.41137655,0.00013207,2]
[419848490,1775418638345,-1399.77259342,0.00013229,2]
[419848491,1775418638355,-195.76,0.00013297,2]
[419848493,1775418638365,-200.0,0.00013335,2]
[419848495,1775418638375,-30172.71823857,0.00013407,2]
[419848497,1775418638385,-37991.50674491,0.00013407,2]
[419848499,1775418638395,-500.0,0.00013453,2]
[419848501,1775418638406,-3000.0,0.00013534,2]
[419848504,1775418638416,-2000.0,0.00013534,2]
[419848506,1775418638426,-195.0,0.00013541,2]
[419848508,1775418638436,-3808.0,0.00013541,2]
[419848510,1775418638446,-3808.0,0.00013541,2]
[419848512,1775418638455,-3808.0,0.00013541,2]
[419848514,1775418638465,-3808.0,0.00013541,2]
[419848516,1775418638475,-3808.0,0.00013541,2]
[419848518,1775418638484,-3808.0,0.00013541,2]
[419848520,1775418638495,-3808.0,0.00013541,2]
[419848522,1775418638505,-3808.0,0.00013541,2]
[419848524,1775418638515,-3808.0,0.00013541,2]
[419848526,1775418638525,-3808.0,0.00013541,2]
[419848528,1775418638535,-3808.0,0.00013541,2]
[419848530,1775418638545,-3808.0,0.00013541,2]
[419848532,1775418638555,-3808.0,0.00013541,2]
[419848534,1775418638565,-3808.0,0.00013541,2]
[419848536,1775418638575,-3808.0,0.00013541,2]
[419848538,1775418638586,-3808.0,0.00013541,2]
[419848540,1775418638596,-3808.0,0.00013541,2]
[419848543,1775418638606,-3808.0,0.00013541,2]
[419848545,1775418638616,-3808.0,0.00013541,2]
[419848547,1775418638625,-3808.0,0.00013541,2]
[419848549,1775418638635,-3808.0,0.00013541,2]
[419848551,1775418638644,-3808.0,0.00013541,2]
[419848553,1775418638654,-3808.0,0.00013541,2]
[419848555,1775418638663,-3813.75699727,0.00013541,2]
[419848557,1775418638673,-150.0,0.00013598,2]
[419848559,1775418638682,-267.272602,0.00013599,2]
[419848561,1775418638692,-166.66,0.000136,2]
[419848563,1775418638702,-500.0,0.00013673,2]
[419848565,1775418638712,-500.0,0.00013695,2]
[419848567,1775418638721,-500.0,0.00013695,2]
[419848569,1775418638732,-500.0,0.00013695,2]
[419848571,1775418638742,-500.0,0.00013695,2]
[419848573,1775418638752,-500.0,0.00013695,2]
[419848575,1775418638763,-500.0,0.00013695,2]
[419848578,1775418638773,-500.0,0.00013695,2]
[419848580,1775418638783,-500.0,0.00013695,2]
[419848582,1775418638792,-500.0,0.00013695,2]
[419848584,1775418638802,-500.0,0.00013695,2]
[419848586,1775418638811,-500.0,0.00013695,2]
[419848588,1775418638822,-500.0,0.00013695,2]
[419848590,1775418638831,-500.0,0.00013695,2]
[419848592,1775418638841,-615.77009816,0.00013695,2]
[419848594,1775418638850,-2201.0,0.00013695,2]
[419848596,1775418638860,-2201.0,0.00013695,2]
[419848598,1775418638869,-2201.0,0.00013695,2]
[419848600,1775418638879,-2201.0,0.00013695,2]
[419848602,1775418638889,-2201.0,0.00013695,2]
[419848604,1775418638899,-2201.0,0.00013695,2]
[419848606,1775418638910,-2201.0,0.00013695,2]
[419848608,1775418638920,-2201.0,0.00013695,2]
[419848610,1775418638930,-2201.0,0.00013695,2]
[419848612,1775418638939,-2201.0,0.00013695,2]
[419848615,1775418638950,-500.0,0.00013695,2]
[419848617,1775418638959,-2201.0,0.00013695,2]
[419848619,1775418638968,-500.0,0.00013695,2]
[419848621,1775418638977,-2201.0,0.00013695,2]
[419848623,1775418638987,-500.0,0.00013695,2]
[419848625,1775418638996,-2201.0,0.00013695,2]
[419848627,1775418639006,-500.0,0.00013695,2]
[419848629,1775418639015,-2201.0,0.00013695,2]
[419848631,1775418639025,-500.0,0.00013695,2]
[419848633,1775418639034,-2201.0,0.00013695,2]
[419848635,1775418639043,-500.0,0.00013695,2]
[419848637,1775418639053,-2201.0,0.00013695,2]
[419848639,1775418639062,-500.0,0.00013695,2]
[419848641,1775418639072,-500.0,0.00013695,2]
[419848643,1775418639081,-2201.0,0.00013695,2]
[419848645,1775418639091,-500.0,0.00013695,2]
[419848647,1775418639100,-500.0,0.00013695,2]
[419848649,1775418639110,-500.0,0.00013695,2]
[419848651,1775418639120,-500.0,0.00013695,2]
[419848653,1775418639129,-500.0,0.00013695,2]
[419848655,1775418639139,-2201.0,0.00013695,2]
[419848657,1775418639148,-500.0,0.00013695,2]
[419848659,1775418639158,-338.15756367,0.00013695,2]
[419848661,1775418639167,-2201.0,0.00013695,2]
[419848663,1775418639176,-2201.0,0.00013695,2]
[419848665,1775418639186,-2201.0,0.00013695,2]
[419848667,1775418639195,-2201.0,0.00013695,2]
[419848669,1775418639205,-2201.0,0.00013695,2]
[419848671,1775418639216,-2220.20664146,0.00013695,2]
[419848673,1775418639225,-594.86,0.00013698,2]
[419848675,1775418639235,-514.82,0.00013698,2]
[419848678,1775418639245,-514.82,0.00013698,2]
[419848679,1775418639255,-514.82,0.00013698,2]
[419848681,1775418639265,-514.82,0.00013698,2]
[419848684,1775418639275,-514.82,0.00013698,2]
[419848686,1775418639285,-514.82,0.00013698,2]
[419848688,1775418639295,-514.82,0.00013698,2]
[419848690,1775418639305,-514.82,0.00013698,2]
[419848692,1775418639314,-500.0,0.00013698,2]
[419848694,1775418639324,-500.0,0.00013698,2]
[419848696,1775418639334,-577.45498934,0.00013698,2]
[419848698,1775418639344,-500.0,0.00013698,2]
[419848700,1775418639354,-500.0,0.00013698,2]
[419848702,1775418639363,-500.0,0.00013698,2]
[419848704,1775418639374,-500.0,0.00013698,2]
[419848706,1775418639384,-500.0,0.00013698,2]
[419848708,1775418639394,-500.0,0.00013698,2]
[419848710,1775418639404,-500.0,0.00013698,2]
[419848713,1775418639415,-500.0,0.00013698,2]
[419848715,1775418639425,-385.93623428,0.00013698,2]
[419848717,1775418639436,-500.0,0.00013698,2]
[419848719,1775418639445,-500.0,0.00013698,2]
[419848721,1775418639455,-500.0,0.00013698,2]
[419848723,1775418639465,-500.0,0.00013698,2]
[419848725,1775418639475,-500.0,0.00013698,2]
[419848727,1775418639485,-500.0,0.00013698,2]
[419848729,1775418639494,-500.0,0.00013698,2]
[419848732,1775418639503,-500.0,0.00013698,2]
[419848734,1775418639513,-500.0,0.00013698,2]
[419848736,1775418639523,-500.0,0.00013698,2]
[419848738,1775418639533,-500.0,0.00013698,2]
[419848740,1775418639542,-500.0,0.00013698,2]
[419848742,1775418639552,-500.0,0.00013698,2]
[419848744,1775418639562,-1269.86,0.00013698,2]
[419848746,1775418639571,-1269.86,0.00013698,2]
[419848748,1775418639581,-1269.86,0.00013698,2]
[419848750,1775418639590,-1269.86,0.00013698,2]
[419848752,1775418639599,-1269.86,0.00013698,2]
[419848754,1775418639609,-1269.86,0.00013698,2]
[419848756,1775418639619,-1269.86,0.00013698,2]
[419848758,1775418639629,-1269.86,0.00013698,2]
[419848760,1775418639639,-500.0,0.00013698,2]
[419848762,1775418639649,-500.0,0.00013698,2]
[419848764,1775418639659,-500.0,0.00013698,2]
[419848766,1775418639668,-500.0,0.00013698,2]
[419848768,1775418639678,-500.0,0.00013698,2]
[419848770,1775418639687,-500.0,0.00013698,2]
[419848772,1775418639697,-500.0,0.00013698,2]
[419848774,1775418639707,-500.0,0.00013698,2]
[419848776,1775418639716,-1143.16,0.00013698,2]
[419848778,1775418639726,-1143.16,0.00013698,2]
[419848780,1775418639736,-1143.16,0.00013698,2]
[419848782,1775418639746,-1143.16,0.00013698,2]
[419848784,1775418639756,-1143.16,0.00013698,2]
[419848787,1775418639766,-1143.16,0.00013698,2]
[419848789,1775418639775,-1143.16,0.00013698,2]
[419848791,1775418639785,-1143.16,0.00013698,2]
[419848793,1775418639794,-713.35,0.00013698,2]
[419848795,1775418639804,-713.35,0.00013698,2]
[419848797,1775418639814,-713.35,0.00013698,2]
[419848799,1775418639824,-713.35,0.00013698,2]
[419848801,1775418639833,-713.35,0.00013698,2]
[419848803,1775418639843,-713.35,0.00013698,2]
[419848805,1775418639852,-713.35,0.00013698,2]
[419848807,1775418639862,-713.35,0.00013698,2]
[419848809,1775418639871,-500.0,0.00013698,2]
[419848811,1775418639881,-500.0,0.00013698,2]
[419848813,1775418639890,-500.0,0.00013698,2]
[419848815,1775418639900,-500.0,0.00013698,2]
[419848817,1775418639910,-500.0,0.00013698,2]
[419848819,1775418639921,-500.0,0.00013698,2]
[419848821,1775418639931,-500.0,0.00013698,2]
[419848824,1775418639940,-500.0,0.00013698,2]
[419848827,1775418639949,-1151.32,0.00013698,2]
[419848830,1775418639959,-1151.32,0.00013698,2]
[419848832,1775418639968,-1151.32,0.00013698,2]
[419848834,1775418639977,-1151.32,0.00013698,2]
[419848836,1775418639986,-1151.32,0.00013698,2]
[419848838,1775418639996,-1151.32,0.00013698,2]
[419848840,1775418640005,-1151.32,0.00013698,2]
[419848842,1775418640015,-1151.32,0.00013698,2]
[419848844,1775418640024,-551.83212521,0.00013698,2]
[419848846,1775418640034,-500.0,0.00013698,2]
[419848848,1775418640043,-500.0,0.00013698,2]
[419848850,1775418640052,-500.0,0.00013698,2]
[419848852,1775418640061,-500.0,0.00013698,2]
[419848854,1775418640071,-500.0,0.00013698,2]
[419848856,1775418640080,-500.0,0.00013698,2]
[419848858,1775418640089,-500.0,0.00013698,2]
[419848860,1775418640099,-500.0,0.00013698,2]
[419848862,1775418640108,-673.65,0.00013698,2]
[419848864,1775418640118,-673.65,0.00013698,2]
[419848866,1775418640128,-673.65,0.00013698,2]
[419848868,1775418640138,-673.65,0.00013698,2]
[419848870,1775418640149,-673.65,0.00013698,2]
[419848872,1775418640159,-673.65,0.00013698,2]
[419848875,1775418640170,-673.65,0.00013698,2]
[419848877,1775418640180,-673.65,0.00013698,2]
[419848879,1775418640190,-500.0,0.00013698,2]
[419848881,1775418640201,-500.0,0.00013698,2]
[419848883,1775418640210,-500.0,0.00013698,2]
[419848885,1775418640220,-500.0,0.00013698,2]
[419848887,1775418640230,-500.0,0.00013698,2]
[419848889,1775418640239,-183.58723642,0.00013698,2]
[419848891,1775418640249,-1063.21,0.00013698,2]
[419848893,1775418640258,-1063.21,0.00013698,2]
[419848895,1775418640268,-1063.21,0.00013698,2]
[419848897,1775418640277,-1063.21,0.00013698,2]
[419848899,1775418640287,-1063.21,0.00013698,2]
[419848901,1775418640296,-1063.21,0.00013698,2]
[419848903,1775418640305,-1063.21,0.00013698,2]
[419848905,1775418640314,-1063.21,0.00013698,2]
[419848907,1775418640324,-588.99,0.00013698,2]
[419848909,1775418640333,-588.99,0.00013698,2]
[419848911,1775418640343,-588.99,0.00013698,2]
[419848913,1775418640352,-588.99,0.00013698,2]
[419848915,1775418640361,-588.99,0.00013698,2]
[419848917,1775418640371,-588.99,0.00013698,2]
[419848919,1775418640380,-588.99,0.00013698,2]
[419848921,1775418640390,-588.99,0.00013698,2]
[419848923,1775418640400,-730.45,0.00013698,2]
[419848925,1775418640409,-500.0,0.00013698,2]
[419848927,1775418640418,-504.35317897,0.00013698,2]
[419848929,1775418640427,-969.24,0.00013698,2]
[419848931,1775418640436,-969.24,0.00013698,2]
[419848933,1775418640446,-969.24,0.00013698,2]
[419848935,1775418640456,-969.24,0.00013698,2]
[419848937,1775418640465,-969.24,0.00013698,2]
[419848939,1775418640474,-969.24,0.00013698,2]
[419848941,1775418640485,-969.24,0.00013698,2]
[419848943,1775418640495,-969.24,0.00013698,2]
[419848945,1775418640504,-500.0,0.00013698,2]
[419848947,1775418640514,-500.0,0.00013698,2]
[419848949,1775418640523,-500.0,0.00013698,2]
[419848951,1775418640533,-500.0,0.00013698,2]
[419848953,1775418640543,-500.0,0.00013698,2]
[419848987,1775418640953,-500.0,0.00013698,2]
[419848989,1775418640966,-500.0,0.00013698,2]
[419848991,1775418640975,-500.0,0.00013698,2]
[419848993,1775418640985,-827.5,0.00013698,2]
[419848995,1775418640995,-827.5,0.00013698,2]
[419848997,1775418641005,-827.5,0.00013698,2]
[419848999,1775418641014,-827.5,0.00013698,2]
[419849001,1775418641023,-827.5,0.00013698,2]
[419849003,1775418641033,-827.5,0.00013698,2]
[419849005,1775418641042,-827.5,0.00013698,2]
[419849007,1775418641051,-827.5,0.00013698,2]
[419849009,1775418641061,-1282.44,0.00013698,2]
[419849011,1775418641070,-1282.44,0.00013698,2]
[419849013,1775418641080,-1282.44,0.00013698,2]
[419849015,1775418641089,-1282.44,0.00013698,2]
[419849016,1775418641099,-1282.44,0.00013698,2]
[419849018,1775418641109,-1282.44,0.00013698,2]
[419849020,1775418641119,-1282.44,0.00013698,2]
[419849022,1775418641128,-1282.44,0.00013698,2]
[419849024,1775418641138,-1115.58,0.00013698,2]
[419849027,1775418641150,-1115.58,0.00013698,2]
[419849029,1775418641160,-1115.58,0.00013698,2]
[419849031,1775418641169,-1115.58,0.00013698,2]
[419849032,1775418641179,-1115.58,0.00013698,2]
[419849034,1775418641188,-1115.58,0.00013698,2]
[419849036,1775418641198,-1115.58,0.00013698,2]
[419849038,1775418641208,-1115.58,0.00013698,2]
[419849040,1775418641218,-500.0,0.00013698,2]
[419849042,1775418641227,-500.0,0.00013698,2]
[419849044,1775418641237,-500.0,0.00013698,2]
[419849046,1775418641247,-500.0,0.00013698,2]
[419849048,1775418641257,-500.0,0.00013698,2]
[419849050,1775418641266,-500.0,0.00013698,2]
[419849052,1775418641276,-500.0,0.00013698,2]
[419849054,1775418641286,-500.0,0.00013698,2]
[419849056,1775418641295,-497.49770464,0.00013698,2]
[419849058,1775418641305,-150.0,0.00013699,2]
[419849060,1775418641315,-150.0,0.00013699,2]
[419849062,1775418641325,-150.0,0.00013699,2]
[419849064,1775418641334,-150.0,0.00013699,2]
[419849066,1775418641345,-150.0,0.00013699,2]
[419849068,1775418641354,-150.0,0.00013699,2]
[419849070,1775418641364,-150.0,0.00013699,2]
[419849072,1775418641373,-166.66,0.00013699,2]
[419849074,1775418641382,-476.08,0.00013699,2]
[419849076,1775418641392,-396.73,0.00013699,2]
[419849078,1775418641401,-330.61,0.00013699,2]
[419849080,1775418641410,-275.51,0.00013699,2]
[419849082,1775418641420,-229.59,0.00013699,2]
[419849084,1775418641430,-191.33,0.00013699,2]
[419849086,1775418641439,-159.44,0.00013699,2]
[419849088,1775418641448,-797.21,0.00013699,2]
[419849090,1775418641458,-163.60261744,0.00013699,2]
[419849092,1775418641467,-211.04857142,0.00013699,2]
[419849094,1775418641476,-385.86149772,0.00013699,2]
[419849096,1775418641486,-500.0,0.00013699,2]
[419849098,1775418641495,-500.0,0.00013699,2]
[419849100,1775418641504,-500.0,0.00013699,2]
[419849103,1775418641513,-500.0,0.00013699,2]
[419849104,1775418641523,-161.91170216,0.00013699,2]
[419849106,1775418641532,-500.0,0.00013699,2]
[419849108,1775418641541,-500.0,0.00013699,2]
[419849111,1775418641551,-515.7358709,0.00013699,2]
[419849113,1775418641561,-500.0,0.00013699,2]
[419849115,1775418641571,-500.0,0.00013699,2]
[419849117,1775418641580,-500.0,0.00013699,2]
[419849119,1775418641590,-164.79711181,0.00013699,2]
[419849121,1775418641599,-500.13152132,0.00013699,2]
[419849123,1775418641608,-500.0,0.00013699,2]
[419849125,1775418641618,-500.0,0.00013699,2]
[419849126,1775418641627,-500.0,0.00013699,2]
[419849128,1775418641636,-518.73332026,0.00013699,2]
[419849130,1775418641646,-312.74353669,0.00013699,2]
[419849132,1775418641655,-500.0,0.00013699,2]
[419849134,1775418641665,-500.0,0.00013699,2]
[419849136,1775418641673,-500.0,0.00013699,2]
[419849138,1775418641682,-500.0,0.00013699,2]
[419849140,1775418641691,-500.0,0.00013699,2]
[419849143,1775418641701,-160.7467095,0.00013699,2]
[419849144,1775418641711,-500.0,0.00013699,2]
[419849147,1775418641722,-500.0,0.00013699,2]
[419849148,1775418641732,-500.0,0.00013699,2]
[419849151,1775418641741,-500.0,0.00013699,2]
[419849153,1775418641752,-500.0,0.00013699,2]
[419849155,1775418641762,-162.72924009,0.00013699,2]
[419849157,1775418641773,-500.0,0.00013699,2]
[419849159,1775418641783,-500.0,0.00013699,2]
[419849161,1775418641792,-607.20051974,0.00013699,2]
[419849163,1775418641801,-569.20510167,0.00013699,2]
[419849165,1775418641811,-500.50066882,0.00013699,2]
[419849167,1775418641820,-500.0,0.00013699,2]
[419849169,1775418641829,-202.64993829,0.00013699,2]
[419849171,1775418641838,-210.98153295,0.00013699,2]
[419849173,1775418641848,-168.69935806,0.00013699,2]
[419849175,1775418641857,-152.37,0.00013699,2]
[419849177,1775418641867,-500.0,0.00013699,2]
[419849179,1775418641876,-633.93373005,0.00013699,2]
[419849181,1775418641885,-162.49,0.000137,2]
[419849183,1775418641894,-406.09,0.00013701,2]
[419849185,1775418641903,-500.0,0.00013727,2]
[419849186,1775418641913,-1399.77259342,0.00013763,2]
[419849188,1775418641922,-30172.71823857,0.00013763,2]
[419849191,1775418641932,-37991.50674491,0.00013763,2]
[419849193,1775418641942,-255.0,0.00013798,2]
[419849195,1775418641951,-420.0,0.00013817,2]
[419849196,1775418641961,-166.66,0.00013836,2]
[419849198,1775418641970,-1680.0,0.00013853,2]
[419849200,1775418641981,-200.0,0.00013883,2]
[419849202,1775418641990,-514.82,0.00013896,2]
[419849205,1775418642000,-500.0,0.00013896,2]
[419849206,1775418642009,-500.0,0.00013896,2]
[419849209,1775418642019,-1269.86,0.00013896,2]
[419849211,1775418642028,-500.0,0.00013896,2]
[419849213,1775418642037,-1143.16,0.00013896,2]
[419849215,1775418642046,-713.35,0.00013896,2]
[419849217,1775418642055,-500.0,0.00013896,2]
[419849219,1775418642065,-1151.32,0.00013896,2]
[419849221,1775418642074,-500.0,0.00013896,2]
[419849223,1775418642083,-673.65,0.00013896,2]
[419849225,1775418642093,-1063.21,0.00013896,2]
[419849227,1775418642102,-500.0,0.00013896,2]
[419849229,1775418642112,-827.5,0.00013896,2]
[419849231,1775418642121,-1282.44,0.00013896,2]
[419849233,1775418642131,-1115.58,0.00013899,2]
[419849234,1775418642140,-200.0604195,0.000139,2]
[419849236,1775418642150,-2667.87,0.000139,2]
[419849239,1775418642161,-1597.37,0.000139,2]
[419849241,1775418642171,-732.89,0.000139,2]
[419849243,1775418642180,-1546.35,0.000139,2]
[419849245,1775418642189,-1664.82,0.000139,2]
[419849247,1775418642198,-1800.91,0.000139,2]
[419849249,1775418642208,-1313.18,0.000139,2]
[419849251,1775418642217,-2774.76,0.000139,2]
[419849253,1775418642226,-2947.9,0.000139,2]
[419849254,1775418642235,-2766.95,0.000139,2]
[419849256,1775418642245,-500.0,0.00013969,2]
[419849258,1775418642254,-730.45,0.00013972,2]
[419849260,1775418642265,-150.0,0.00013973,2]
[419849262,1775418642274,-150.0,0.00013973,2]
[419849264,1775418642284,-150.0,0.00013973,2]
[419849266,1775418642293,-150.0,0.00013973,2]
[419849268,1775418642303,-150.0,0.00013973,2]
[419849270,1775418642312,-150.0,0.00013973,2]
[419849272,1775418642321,-150.0,0.00013973,2]
[419849274,1775418642330,-166.66,0.00013973,2]
[419849276,1775418642339,-155.19654635,0.00013985,2]
[419849278,1775418642349,-500.0,0.00014001,2]
[419849280,1775418642358,-500.0,0.00014005,2]
[419849283,1775418642368,-60000.0,0.00014006,2]
[419849284,1775418642377,-166.66,0.00014021,2]
[419849287,1775418642386,-2000.0,0.00014038,2]
[419849289,1775418642396,-2000.0,0.00014038,2]
[419849291,1775418642405,-2000.0,0.00014038,2]
[419849293,1775418642414,-2000.0,0.00014038,2]
[419849295,1775418642424,-2000.0,0.00014038,2]
[419849297,1775418642434,-2000.0,0.00014038,2]
[419849299,1775418642443,-2000.0,0.00014038,2]
[419849301,1775418642453,-2000.0,0.00014038,2]
[419849303,1775418642463,-2000.0,0.00014038,2]
[419849308,1775418642472,-2000.0,0.00014038,2]
[419849312,1775418642481,-2000.0,0.00014038,2]
[419849315,1775418642490,-2000.0,0.00014038,2]
[419849318,1775418642500,-500.0,0.00014072,2]
[419849321,1775418642509,-500.0,0.00014072,2]
[419849323,1775418642518,-500.0,0.00014072,2]
[419849325,1775418642527,-152.92156999,0.00014072,2]
[419849327,1775418642536,-500.0,0.00014072,2]
[419849329,1775418642545,-150.0,0.00014072,2]
[419849331,1775418642554,-1750.0,0.00014082,2]
[419849333,1775418642563,-1750.0,0.00014082,2]
[419849335,1775418642572,-1750.0,0.00014082,2]
[419849338,1775418642582,-1750.0,0.00014082,2]
[419849340,1775418642592,-1750.0,0.00014082,2]
[419849342,1775418642601,-1750.0,0.00014082,2]
[419849344,1775418642610,-1750.0,0.00014082,2]
[419849346,1775418642619,-1750.0,0.00014082,2]
[419849348,1775418642628,-1750.0,0.00014082,2]
[419849350,1775418642637,-1284.0,0.00014082,2]
[419849351,1775418642647,-507.0,0.00014095,2]
[419849353,1775418642655,-168.9829,0.000141,2]
[419849355,1775418642664,-166.66,0.0001411,2]
[419849357,1775418642674,-30172.71823857,0.00014119,2]
[419849359,1775418642683,-37991.50674491,0.00014119,2]
[419849362,1775418642692,-2000.0,0.0001412,2]
[419849365,1775418642701,-2000.0,0.0001412,2]
[419849368,1775418642711,-2000.0,0.0001412,2]
[419849371,1775418642720,-2000.0,0.0001412,2]
[419849374,1775418642729,-2000.0,0.0001412,2]
[419849377,1775418642738,-2000.0,0.0001412,2]
[419849380,1775418642747,-2000.0,0.0001412,2]
[419849383,1775418642756,-2000.0,0.0001412,2]
[419849386,1775418642765,-2000.0,0.0001412,2]
[419849389,1775418642774,-2000.0,0.0001412,2]
[419849392,1775418642783,-2000.0,0.0001412,2]
[419849395,1775418642792,-2000.0,0.0001412,2]